bitfinex/quotes_SOLUSD_20250823
["timestamp","ask_amount","ask_price","bid_price","bid_amount"]
[1755976062994,106.56,204.81,204.76,0.72]
[1755976063180,85.37655095,204.81,204.77,13.59559401]
[1755976063381,85.37655095,204.81,204.78,0.72]
[1755976063589,85.37655095,204.81,204.77,13.59559401]
[1755976063791,85.37655095,204.81,204.78,0.72]
[1755976063989,85.37655095,204.81,204.79,0.72]
[1755976064595,4.87655095,204.81,204.79,0.72]
[1755976065599,0.06,204.81,204.79,0.72]
[1755976065801,4.87655095,204.81,204.79,0.72]
[1755976066883,0.06,204.81,204.8,0.72]
[1755976067197,4.87655095,204.81,204.8,0.72]
[1755976068602,4.87655095,204.81,204.78,37.44]
[1755976068788,4.87655095,204.81,204.79,0.72]
[1755976069102,4.87655095,204.81,204.8,0.72]
[1755976069992,0.06,204.81,204.8,0.72]
[1755976070190,4.87655095,204.81,204.8,0.72]
[1755976070590,4.87655095,204.81,204.79,0.72]
[1755976071505,4.87655095,204.81,204.78,37.44]
[1755976071708,4.87655095,204.81,204.8,0.72]
[1755976072208,4.87655095,204.81,204.78,38.16]
[1755976072707,4.81655095,204.8,204.78,38.16]
[1755976072889,0.06,204.81,204.79,0.72]
[1755976073094,4.81655095,204.8,204.79,0.72]
[1755976074209,4.81655095,204.8,204.78,38.16]
[1755976074697,4.81655095,204.8,204.78,37.44]
[1755976074897,4.81655095,204.8,204.78,38.16]
[1755976075288,4.81655095,204.8,204.79,0.72]
[1755976075718,0.06,204.81,204.79,0.72]
[1755976076024,4.81655095,204.8,204.79,0.72]
[1755976076388,0.06,204.81,204.79,19.19855838]
[1755976076695,0.06,204.81,204.79,24.01510933]
[1755976076898,0.06,204.81,204.8,0.72]
[1755976077295,0.06,204.81,204.8,5.53655095]
[1755976077502,0.06,204.81,204.8,5.47655095]
[1755976078015,0.06,204.81,204.8,0.66]
[1755976078587,0.06,204.81,204.8,5.5428125]
[1755976078793,0.06,204.81,204.8,10.35936345]
[1755976079309,0.06,204.81,204.8,0.66]
[1755976080024,0.06,204.81,204.8,5.5428125]
[1755976081205,0.06,204.81,204.8,13.59559401]
[1755976081409,0.06,204.81,204.8,14.25559401]
[1755976082395,0.06,204.81,204.8,23.95495746]
[1755976083201,0.06,204.81,204.8,61.39495746]
[1755976083618,0.06,204.81,204.8,63.35003946]
[1755976085018,0.06,204.81,204.8,58.53348851]
[1755976085199,0.06,204.81,204.8,63.35003946]
[1755976085412,0.06,204.81,204.8,58.53348851]
[1755976085618,0.06,204.81,204.8,63.35003946]
[1755976088027,0.06,204.81,204.8,63.6343626]
[1755976088202,0.06,204.81,204.8,64.12264385]
[1755976088529,0.06,204.81,204.8,63.35003946]
[1755976096121,0.06,204.81,204.79,13.59559401]
[1755976096429,0.73,204.81,204.8,51.01559401]
[1755976096620,0.06,204.81,204.8,13.59559401]
[1755976096819,5.54655095,204.81,204.8,37.42]
[1755976098813,0.73,204.81,204.8,37.42]
[1755976100740,0.73,204.81,204.77,23.98560007]
[1755976100919,0.73,204.81,204.79,13.59559401]
[1755976101119,0.06,204.81,204.8,37.42]
[1755976104345,0.06,204.81,204.79,13.59559401]
[1755976104517,0.06,204.81,204.8,37.42]
[1755976105121,0.06,204.81,204.79,13.59559401]
[1755976105330,0.06,204.81,204.8,37.42]
[1755976109344,5.57655095,204.81,204.8,37.42]
[1755976110854,4.87655095,204.81,204.8,37.42]
[1755976111856,5.57655095,204.81,204.8,37.42]
[1755976112659,0.76,204.81,204.8,37.42]
[1755976112962,5.57655095,204.81,204.8,37.42]
[1755976114957,4.87655095,204.81,204.8,37.42]
[1755976121763,0.06,204.81,204.8,37.42]
[1755976122060,4.87655095,204.81,204.8,37.42]
[1755976126048,0.06,204.81,204.8,38.13]
[1755976126261,4.87655095,204.81,204.8,38.13]
[1755976127264,4.87655095,204.81,204.8,0.71]
[1755976127454,4.87655095,204.81,204.8,38.13]
[1755976129260,4.87655095,204.81,204.8,37.42]
[1755976129854,5.57655095,204.81,204.77,0.03]
[1755976130169,0.7,204.8,204.78,37.42]
[1755976130759,4.94257409,204.81,204.78,37.42]
[1755976130963,5.64257409,204.81,204.78,37.42]
[1755976131277,4.81655095,204.79,204.78,37.42]
[1755976132267,4.81655095,204.79,204.77,0.03]
[1755976132474,4.81655095,204.78,204.77,0.03]
[1755976132875,4.81655095,204.78,204.77,37.45]
[1755976134166,4.81655095,204.78,204.77,0.03]
[1755976134368,5.51655095,204.78,204.77,0.03]
[1755976134964,4.81655095,204.78,204.77,0.03]
[1755976140287,0.69,204.79,204.77,0.03]
[1755976140468,4.81655095,204.78,204.77,0.03]
[1755976140667,0.06,204.81,204.78,0.7]
[1755976140880,0.06,204.81,204.79,37.42]
[1755976141065,0.06,204.81,204.8,0.7]
[1755976142574,0.06,204.81,204.8,10.39936345]
[1755976142982,0.06,204.81,204.8,5.5828125]
[1755976143560,0.06,204.81,204.8,0.7]
[1755976147396,0.06,204.81,204.8,5.5828125]
[1755976148786,0.06,204.81,204.8,43.0228125]
[1755976153390,0.06,204.81,204.8,38.14]
[1755976153599,0.06,204.81,204.8,38.12]
[1755976159801,0.06,204.81,204.8,0.7]
[1755976160005,0.06,204.81,204.8,38.12]
[1755976161683,0.06,204.81,204.8,0.248571]
[1755976162084,0.06,204.81,204.8,5.1313835]
[1755976163912,0.06,204.81,204.8,5.8313835]
[1755976164979,0.06,204.81,204.8,5.1313835]
[1755976165280,0.06,204.81,204.8,5.8313835]
[1755976166802,4.87655095,204.84,204.8,5.5828125]
[1755976167107,4.87655095,204.84,204.81,0.7]
[1755976168316,4.87655095,204.84,204.81,5.58255314]
[1755976169003,5.52655095,204.84,204.81,5.58255314]
[1755976170393,4.87655095,204.84,204.82,0.68]
[1755976170589,0.06,204.84,204.81,4.88255314]
[1755976170805,0.06,204.84,204.83,0.68]
[1755976172410,0.06,204.84,204.82,5.56233061]
[1755976173105,0.06,204.84,204.82,4.88233061]
[1755976173611,0.06,204.84,204.82,0.68]
[1755976176521,0.06,204.84,204.83,0.68]
[1755976178022,0.06,204.84,204.82,5.56226042]
[1755976182329,0.06,204.84,204.83,0.68]
[1755976182730,0.06,204.84,204.82,4.88226042]
[1755976183030,0.06,204.84,204.82,5.56226042]
[1755976187136,0.06,204.84,204.82,4.88226042]
[1755976187437,0.06,204.84,204.82,5.56226042]
[1755976190337,0.06,204.84,204.83,0.68]
[1755976190510,0.06,204.84,204.82,42.30226042]
[1755976190711,0.06,204.84,204.82,42.98226042]
[1755976191114,10.0,204.82,204.8,3.706551]
[1755976191337,26.0,204.78,204.77,0.03]
[1755976191510,31.10087409,204.78,204.77,0.03]
[1755976191913,0.28432314,204.77,204.74,0.03]
[1755976192131,26.0,204.72,204.71,0.03]
[1755976192316,26.0,204.68,204.65,0.03]
[1755976192515,55.2520371,204.71,204.61,0.2]
[1755976192516,9.91742504,204.67,204.61,0.2]
[1755976192712,5.10087409,204.63,204.6,0.03]
[1755976192949,24.08275475,204.61,204.55,0.71]
[1755976193123,4.81655095,204.59,204.55,0.71]
[1755976193317,4.81655095,204.57,204.55,0.03]
[1755976193731,6.77459995,204.57,204.55,0.03]
[1755976194323,9.50494323,204.57,204.55,0.03]
[1755976194743,7.54689423,204.56,204.55,0.03]
[1755976194945,7.54689423,204.52,204.51,14.27559401]
[1755976195245,7.54689423,204.52,204.51,0.68]
[1755976195617,7.54689423,204.52,204.49,0.68]
[1755976195934,7.54689423,204.5,204.48,13.59559401]
[1755976196138,7.54689423,204.49,204.48,13.59559401]
[1755976196360,7.54689423,204.49,204.48,14.27559401]
[1755976200331,19.98401693,204.49,204.46,0.68]
[1755976200536,7.54689423,204.47,204.46,52.03559401]
[1755976200850,7.54689423,204.47,204.45,0.03]
[1755976201049,7.54689423,204.46,204.45,0.03]
[1755976201346,7.54689423,204.46,204.42,0.68]
[1755976201550,24.94698254,204.49,204.39,0.88]
[1755976201551,7.54689423,204.43,204.39,0.88]
[1755976201734,7.54689423,204.4,204.39,0.88]
[1755976201929,7.54689423,204.4,204.39,0.2]
[1755976201930,15.09378846,204.4,204.39,0.2]
[1755976202150,15.09378846,204.4,204.34,0.68]
[1755976202151,20.12831793,204.4,204.34,0.68]
[1755976202324,4.8923679,204.4,204.34,0.68]
[1755976202529,7.54689423,204.36,204.34,0.68]
[1755976202744,4.89206361,204.42,204.35,13.59559401]
[1755976202950,7.54689423,204.36,204.35,13.59559401]
[1755976203148,4.89206361,204.42,204.33,13.59559401]
[1755976203349,30.8915688,204.44,204.33,21.14248824]
[1755976203624,7.54689423,204.39,204.35,13.59559401]
[1755976204049,7.54689423,204.38,204.36,0.68]
[1755976204860,7.54689423,204.37,204.36,0.68]
[1755976205031,7.54689423,204.38,204.36,0.68]
[1755976205225,7.54689423,204.38,204.37,13.59559401]
[1755976205430,7.54689423,204.4,204.37,52.21559401]
[1755976205734,7.54689423,204.4,204.38,0.68]
[1755976206365,7.54689423,204.41,204.38,0.68]
[1755976206945,15.09378823,204.42,204.38,0.68]
[1755976207457,19.98569167,204.42,204.38,0.68]
[1755976208646,12.43879744,204.42,204.39,0.68]
[1755976208954,12.43879744,204.42,204.4,0.68]
[1755976210435,19.98569167,204.42,204.4,0.68]
[1755976212456,7.54689423,204.41,204.4,0.68]
[1755976212860,19.98569167,204.42,204.4,0.68]
[1755976213446,7.54689423,204.41,204.4,0.68]
[1755976216939,19.98569167,204.42,204.4,0.68]
[1755976218270,12.43879767,204.42,204.4,0.68]
[1755976218454,4.89190344,204.42,204.4,0.68]
[1755976220667,4.89117143,204.45,204.4,0.68]
[1755976220965,7.54689423,204.44,204.4,0.68]
[1755976221165,92.72452524,204.51,204.41,13.59559401]
[1755976221376,7.54689423,204.49,204.42,38.54]
[1755976221538,7.54689423,204.47,204.42,37.86]
[1755976221737,7.54689423,204.47,204.43,0.68]
[1755976222166,7.54689423,204.46,204.43,0.68]
[1755976222474,7.54689423,204.45,204.43,0.68]
[1755976222643,7.54689423,204.45,204.42,37.86]
[1755976222849,7.54689423,204.45,204.44,0.68]
[1755976224759,7.54689423,204.45,204.42,38.54]
[1755976224972,7.54689423,204.43,204.42,38.54]
[1755976225187,12.43830491,204.44,204.42,38.54]
[1755976226981,12.43830491,204.44,204.43,0.68]
[1755976227755,7.54689423,204.44,204.43,0.68]
[1755976228467,7.54689423,204.45,204.43,0.68]
[1755976229366,4.89141068,204.44,204.43,0.68]
[1755976229576,4.89141068,204.44,204.42,37.86]
[1755976229884,4.89141068,204.44,204.42,38.54]
[1755976230463,4.89141068,204.44,204.43,0.68]
[1755976231777,4.89141068,204.44,204.42,38.54]
[1755976231980,4.89141068,204.44,204.42,37.86]
[1755976232287,4.89141068,204.44,204.43,0.68]
[1755976234768,0.06,204.47,204.43,0.68]
[1755976234977,7.54689423,204.44,204.43,0.68]
[1755976236589,12.43830491,204.44,204.43,0.68]
[1755976237103,4.89141068,204.44,204.43,0.68]
[1755976237266,12.43830491,204.44,204.43,0.68]
[1755976238911,7.60689423,204.47,204.43,0.68]
[1755976239193,3.65550499,204.46,204.43,0.68]
[1755976240010,7.60689423,204.47,204.43,0.68]
[1755976240178,4.89117143,204.45,204.43,0.68]
[1755976242182,4.89093221,204.46,204.43,0.68]
[1755976242389,3.66149095,204.45,204.43,0.68]
[1755976243391,4.89141068,204.44,204.43,0.68]
[1755976244387,8.55947724,204.44,204.43,0.68]
[1755976245601,4.89093221,204.46,204.43,0.68]
[1755976245786,3.6681603,204.45,204.43,0.68]
[1755976247384,7.54689423,204.44,204.43,0.68]
[1755976247768,12.43830491,204.44,204.43,0.68]
[1755976248882,12.43830491,204.44,204.42,37.86]
[1755976249195,12.43830491,204.44,204.42,38.54]
[1755976249389,12.43830491,204.44,204.43,0.68]
[1755976250295,4.89141068,204.44,204.43,0.68]
[1755976252999,0.06,204.47,204.43,0.68]
[1755976253205,7.54689423,204.45,204.43,0.68]
[1755976253790,7.54689423,204.44,204.43,0.68]
[1755976254301,17.94527256,204.44,204.39,0.03]
[1755976254506,7.54689423,204.4,204.39,0.71]
[1755976254689,7.54689423,204.41,204.39,0.71]
[1755976255400,7.54689423,204.42,204.39,0.71]
[1755976255705,17.11993738,204.44,204.39,0.71]
[1755976255874,7.54689423,204.43,204.39,0.71]
[1755976256892,4.89188924,204.42,204.39,0.71]
[1755976257608,12.43878347,204.42,204.39,0.71]
[1755976258490,12.2285267,204.44,204.39,0.71]
[1755976258697,7.54689423,204.42,204.39,0.71]
[1755976258995,7.54689423,204.43,204.39,0.71]
[1755976259191,7.54689423,204.43,204.39,0.03]
[1755976259501,7.54689423,204.43,204.4,0.7]
[1755976260227,7.54689423,204.42,204.4,0.7]
[1755976262396,4.83502561,204.42,204.4,0.7]
[1755976265292,4.83502561,204.42,204.39,0.03]
[1755976265293,9.72699277,204.42,204.39,0.03]
[1755976265608,4.83502561,204.41,204.39,0.03]
[1755976265799,4.83502561,204.4,204.39,0.03]
[1755976266596,5.23573382,204.44,204.39,0.03]
[1755976266800,4.83502561,204.4,204.39,0.73]
[1755976267301,4.83502561,204.4,204.39,0.03]
[1755976267616,4.83502561,204.4,204.39,0.73]
[1755976267800,4.83502561,204.41,204.39,0.73]
[1755976269328,4.83502561,204.4,204.39,0.73]
[1755976272321,4.83502561,204.4,204.39,0.03]
[1755976272817,4.83502561,204.4,204.39,0.73]
[1755976275426,4.83502561,204.41,204.39,0.73]
[1755976276422,0.06,204.44,204.4,18.43061962]
[1755976276611,0.06,204.44,204.41,0.7]
[1755976278005,4.89502561,204.44,204.41,0.7]
[1755976278528,0.06,204.44,204.41,0.7]
[1755976280230,4.89502561,204.44,204.41,0.7]
[1755976282444,4.83502561,204.43,204.41,0.7]
[1755976282909,0.06,204.44,204.41,0.7]
[1755976283111,4.83502561,204.43,204.4,37.64]
[1755976283422,4.83502561,204.43,204.41,0.7]
[1755976284229,4.83502561,204.43,204.42,0.7]
[1755976284436,4.83502561,204.43,204.39,0.933585]
[1755976284732,4.83502561,204.4,204.39,0.933585]
[1755976285104,4.83502561,204.4,204.39,1.633585]
[1755976285531,4.83502561,204.4,204.39,0.933585]
[1755976286619,9.84364888,204.41,204.39,0.933585]
[1755976286822,4.83502561,204.4,204.39,0.933585]
[1755976289329,9.78647361,204.41,204.39,0.933585]
[1755976289923,9.78647361,204.41,204.39,1.603585]
[1755976291753,14.67866148,204.41,204.39,1.603585]
[1755976292058,14.67866148,204.41,204.39,0.933585]
[1755976292420,4.83502561,204.4,204.39,0.933585]
[1755976292626,8.50500212,204.4,204.39,0.933585]
[1755976293629,13.39737002,204.4,204.39,0.933585]
[1755976294028,15.35714602,204.4,204.39,0.933585]
[1755976294345,18.08145525,204.4,204.39,0.933585]
[1755976294553,14.41147874,204.4,204.39,0.933585]
[1755976296026,14.69580188,204.4,204.39,0.933585]
[1755976299144,9.51911084,204.4,204.39,1.603585]
[1755976299749,1.959776,204.4,204.39,1.603585]
[1755976299955,9.51911084,204.4,204.39,1.603585]
[1755976300459,1.959776,204.4,204.39,1.603585]
[1755976300625,9.51911084,204.4,204.39,1.603585]
[1755976301663,1.959776,204.4,204.39,1.603585]
[1755976301866,9.51911084,204.4,204.39,1.603585]
[1755976304564,7.55933484,204.4,204.39,1.603585]
[1755976304732,7.61933484,204.41,204.39,1.603585]
[1755976304929,0.06,204.41,204.4,0.67]
[1755976305161,7.61933484,204.41,204.4,0.67]
[1755976308169,12.51147906,204.41,204.39,0.933585]
[1755976308376,7.55933484,204.4,204.39,0.933585]
[1755976308664,7.55933484,204.4,204.39,1.603585]
[1755976308856,9.51901484,204.4,204.39,1.603585]
[1755976310345,7.55933484,204.4,204.39,1.603585]
[1755976311444,7.55933484,204.4,204.39,0.933585]
[1755976311966,9.51901484,204.4,204.39,0.933585]
[1755976312465,9.51901484,204.4,204.39,1.603585]
[1755976312963,14.41138274,204.4,204.39,1.603585]
[1755976314378,12.45170274,204.4,204.39,1.603585]
[1755976315287,14.41138174,204.4,204.39,1.603585]
[1755976316367,11.68921836,204.4,204.39,1.603585]
[1755976317674,4.83717146,204.4,204.39,1.603585]
[1755976320303,11.68921936,204.4,204.39,1.603585]
[1755976323482,11.68921936,204.4,204.39,0.933585]
[1755976323668,11.68921936,204.4,204.39,1.653585]
[1755976323994,11.68921936,204.4,204.39,0.933585]
[1755976325670,15.35441673,204.4,204.39,0.933585]
[1755976326590,15.35470683,204.4,204.39,0.933585]
[1755976327090,17.47186088,204.4,204.39,0.933585]
[1755976327466,36.82054672,204.4,204.39,0.933585]
[1755976331675,74.40054672,204.4,204.39,0.933585]
[1755976336099,55.05186088,204.4,204.39,0.933585]
[1755976336277,49.5535425,204.4,204.39,0.933585]
[1755976336600,55.05154749,204.4,204.39,0.933585]
[1755976338980,17.47154749,204.4,204.39,0.933585]
[1755976339583,55.05154749,204.4,204.39,0.933585]
[1755976339902,55.05156702,204.4,204.39,0.933585]
[1755976345007,17.47156702,204.4,204.39,0.933585]
[1755976345314,53.21889869,204.4,204.39,0.933585]
[1755976346491,55.05499915,204.4,204.39,0.933585]
[1755976347777,55.11499915,204.4,204.39,0.933585]
[1755976349800,55.11507235,204.4,204.39,0.933585]
[1755976351312,50.27790089,204.4,204.39,0.933585]
[1755976351485,53.28118027,204.4,204.39,0.933585]
[1755976353690,15.70118027,204.4,204.39,0.933585]
[1755976353891,10.86400881,204.4,204.39,1.643585]
[1755976354093,49.6135425,204.4,204.39,1.643585]
[1755976354411,12.0335425,204.4,204.39,1.643585]
[1755976354617,49.6135425,204.4,204.39,1.643585]
[1755976356394,53.28245176,204.4,204.39,1.643585]
[1755976357826,15.70245176,204.4,204.39,1.643585]
[1755976358120,53.28245176,204.4,204.39,1.643585]
[1755976358608,15.70245176,204.4,204.39,1.643585]
[1755976358914,49.6135425,204.4,204.39,1.643585]
[1755976359596,12.0335425,204.4,204.39,1.643585]
[1755976359799,49.6135425,204.4,204.39,1.643585]
[1755976366016,44.77637104,204.4,204.39,1.643585]
[1755976366214,49.6135425,204.4,204.39,1.643585]
[1755976366416,53.28517545,204.4,204.39,1.643585]
[1755976367696,53.28517545,204.4,204.39,0.933585]
[1755976367697,74.46997162,204.4,204.39,0.933585]
[1755976369998,74.46997162,204.4,204.39,1.643585]
[1755976370419,50.28411432,204.4,204.39,1.643585]
[1755976370622,53.28517545,204.4,204.39,1.643585]
[1755976372020,55.12168872,204.4,204.39,1.643585]
[1755976372928,51.45005577,204.4,204.39,1.643585]
[1755976373222,55.12304824,204.4,204.39,1.643585]
[1755976375623,17.54304824,204.4,204.39,1.643585]
[1755976375826,48.44936351,204.4,204.39,1.643585]
[1755976376023,53.28653497,204.4,204.39,1.643585]
[1755976376523,53.28647609,204.4,204.39,1.643585]
[1755976377929,15.70647609,204.4,204.39,1.643585]
[1755976378331,10.86930463,204.4,204.39,1.643585]
[1755976378513,0.06,204.4,204.39,1.643585]
[1755976378822,0.06,204.41,204.39,1.643585]
[1755976379014,0.06,204.41,204.39,0.933585]
[1755976379211,0.06,204.41,204.4,0.7]
[1755976385143,4.89717146,204.41,204.39,0.933585]
[1755976385355,4.83717146,204.4,204.39,0.933585]
[1755976386039,4.83717146,204.4,204.39,1.633585]
[1755976386243,9.67434246,204.4,204.39,1.633585]
[1755976387133,4.837171,204.4,204.39,1.633585]
[1755976387522,9.67434246,204.4,204.39,1.633585]
[1755976387914,4.837171,204.4,204.39,1.633585]
[1755976392749,0.06,204.41,204.39,6.47075646]
[1755976392927,0.06,204.41,204.4,4.83717146]
[1755976393237,0.06,204.41,204.4,5.53717146]
[1755976393547,0.06,204.41,204.4,0.7]
[1755976398043,0.06,204.41,204.4,0.73]
[1755976404946,5.60717146,204.41,204.4,0.03]
[1755976405367,4.89717146,204.41,204.4,0.03]
[1755976406126,6.85675546,204.41,204.4,0.03]
[1755976407141,2.019584,204.41,204.4,0.73]
[1755976407675,0.06,204.41,204.4,0.73]
[1755976429178,0.06,204.41,204.4,19.16276547]
[1755976429383,0.06,204.41,204.4,24.05513337]
[1755976429575,0.06,204.41,204.4,66.46230537]
[1755976429975,0.06,204.43,204.41,13.59559401]
[1755976430161,0.06,204.43,204.42,18.43276547]
[1755976430361,0.06,204.43,204.42,19.14276547]
[1755976430770,0.06,204.43,204.42,21.10138947]
[1755976432285,0.06,204.43,204.42,26.48246763]
[1755976435181,0.06,204.43,204.42,21.64529617]
[1755976435398,0.06,204.43,204.42,26.48246763]
[1755976440379,0.06,204.43,204.42,25.99327871]
[1755976448186,0.75,204.43,204.42,57.91138947]
[1755976448385,0.75,204.43,204.42,55.95276547]
[1755976448593,0.75,204.43,204.42,18.43276547]
[1755976448796,0.75,204.43,204.42,55.95276547]
[1755976449200,0.06,204.43,204.42,55.95276547]
[1755976452292,0.06,204.43,204.42,51.11559401]
[1755976452602,0.75,204.43,204.42,51.11559401]
[1755976454005,0.06,204.43,204.42,51.11559401]
[1755976454506,0.06,204.43,204.42,13.59559401]
[1755976454695,0.06,204.43,204.42,51.11559401]
[1755976458910,0.06,204.43,204.42,55.95276547]
[1755976461494,0.06,204.43,204.42,51.11559401]
[1755976463822,0.06,204.43,204.41,0.03]
[1755976463999,0.75,204.43,204.42,37.52]
[1755976464600,5.58717146,204.43,204.42,37.52]
[1755976464804,5.58717146,204.43,204.41,0.03]
[1755976465019,5.52717146,204.42,204.41,0.03]
[1755976466103,10.4190607,204.42,204.41,0.03]
[1755976467523,10.70338384,204.42,204.41,0.03]
[1755976467728,36.70338384,204.42,204.41,0.03]
[1755976468195,31.52717146,204.42,204.41,0.03]
[1755976468896,36.4190607,204.42,204.41,0.03]
[1755976469517,31.58188924,204.42,204.41,0.03]
[1755976469726,36.4190607,204.42,204.41,0.03]
[1755976470411,31.58188924,204.42,204.41,0.03]
[1755976470612,36.4190607,204.42,204.41,0.03]
[1755976474336,31.58188924,204.42,204.41,0.03]
[1755976474517,36.4190607,204.42,204.41,0.03]
[1755976478923,38.3786447,204.42,204.41,0.03]
[1755976479238,36.4190607,204.42,204.41,0.03]
[1755976480472,38.3786437,204.42,204.41,0.03]
[1755976484044,37.6886437,204.42,204.41,0.03]
[1755976485358,38.3986437,204.42,204.41,0.03]
[1755976486171,37.6886437,204.42,204.41,0.03]
[1755976488466,38.3986437,204.42,204.41,0.03]
[1755976489668,37.6886437,204.42,204.41,0.03]
[1755976490765,38.3986437,204.42,204.41,0.03]
[1755976491265,37.6886437,204.42,204.41,0.03]
[1755976491577,37.6886437,204.42,204.41,0.74]
[1755976491578,26.0,204.42,204.41,0.74]
[1755976494562,30.83717146,204.42,204.41,0.74]
[1755976496753,30.83717146,204.42,204.41,0.03]
[1755976497167,30.89717146,204.42,204.41,0.03]
[1755976497779,30.89717146,204.42,204.41,0.68]
[1755976501269,30.89717146,204.42,204.41,0.03]
[1755976501673,30.89717146,204.42,204.41,0.68]
[1755976502987,30.89717146,204.42,204.41,0.03]
[1755976505683,35.7890607,204.42,204.41,0.03]
[1755976505984,37.7486447,204.42,204.41,0.03]
[1755976506780,38.4086447,204.42,204.41,0.03]
[1755976507371,37.7486447,204.42,204.41,0.03]
[1755976508388,38.69296784,204.42,204.41,0.03]
[1755976509780,42.36478584,204.42,204.41,0.03]
[1755976510088,0.28432314,204.41,204.4,0.03]
[1755976510289,14.34544116,204.41,204.4,0.03]
[1755976510966,10.8083327,204.41,204.4,0.03]
[1755976511175,37.97368616,204.41,204.4,0.03]
[1755976511366,38.63368616,204.41,204.4,0.03]
[1755976514179,119.13368616,204.41,204.4,0.03]
[1755976516716,113.6365147,204.41,204.4,0.03]
[1755976516897,118.47368616,204.41,204.4,0.03]
[1755976517214,119.13368616,204.41,204.4,0.03]
[1755976517409,118.47368616,204.41,204.4,0.03]
[1755976518608,113.6365147,204.41,204.4,0.03]
[1755976518909,118.47368616,204.41,204.4,0.03]
[1755976520122,119.13368616,204.41,204.4,0.03]
[1755976521522,118.47368616,204.41,204.4,0.03]
[1755976522498,119.13368616,204.41,204.4,0.03]
[1755976524514,156.65368616,204.41,204.4,0.03]
[1755976524715,130.65368616,204.41,204.4,0.03]
[1755976525912,50.15368616,204.41,204.4,0.03]
[1755976527131,53.82312301,204.41,204.4,0.03]
[1755976528210,48.98595155,204.41,204.4,0.03]
[1755976528423,53.82312301,204.41,204.4,0.03]
[1755976528624,50.15368616,204.41,204.4,0.03]
[1755976529617,50.21368616,204.41,204.4,0.03]
[1755976541436,49.55368616,204.41,204.4,0.03]
[1755976544638,50.21368616,204.41,204.4,0.03]
[1755976545330,49.55368616,204.41,204.4,0.03]
[1755976546536,53.22266359,204.41,204.4,0.03]
[1755976546916,15.70266359,204.41,204.4,0.03]
[1755976547117,53.22266359,204.41,204.4,0.03]
[1755976551048,49.55368616,204.41,204.4,0.03]
[1755976551235,53.22392217,204.41,204.4,0.03]
[1755976555343,15.70392217,204.41,204.4,0.03]
[1755976555528,53.22392217,204.41,204.4,0.03]
[1755976556629,15.70392217,204.41,204.4,0.03]
[1755976556834,53.22392217,204.41,204.4,0.03]
[1755976558157,48.38675071,204.41,204.4,0.03]
[1755976558453,53.22392217,204.41,204.4,0.03]
[1755976559952,15.70392217,204.41,204.4,0.03]
[1755976560157,53.20392217,204.41,204.4,0.03]
[1755976561028,53.20604021,204.41,204.4,0.03]
[1755976563645,53.20604021,204.41,204.4,0.72]
[1755976565855,15.70604021,204.41,204.4,0.72]
[1755976569758,15.70720198,204.41,204.4,0.72]
[1755976571745,10.87003052,204.41,204.4,0.72]
[1755976571951,15.70720198,204.41,204.4,0.72]
[1755976575591,7.1965147,204.41,204.4,0.72]
[1755976575768,12.03368616,204.41,204.4,0.72]
[1755976582068,12.03368616,204.41,204.4,0.03]
[1755976582646,12.03368616,204.41,204.4,0.72]
[1755976584067,12.03368616,204.41,204.4,0.03]
[1755976584867,12.03368616,204.41,204.4,0.72]
[1755976586976,12.03368616,204.41,204.4,0.03]
[1755976587964,16.39479634,204.41,204.4,0.03]
[1755976588746,15.70479634,204.41,204.4,0.03]